fUSD/lending_fUSD_20260308
["ID","MTS","AMOUNT","RATE_DAILY","PERIOD"]
[407964516,1772940648484,-15885.05811444,0.00047,120]
[407964517,1772940648493,-8792.0,0.00047,120]
[407964518,1772940648503,-4307.0,0.00047,120]
[407964519,1772940648512,-1082.42425901,0.00047,30]
[407964520,1772940648521,-150.0,0.00047104,2]
[407964521,1772940648532,-150.39990835,0.00047104,2]
[407964522,1772940648542,-160.0,0.00047121,90]
[407964523,1772940648552,-304.0,0.00047123,30]
[407964524,1772940648564,-231.56008107,0.00047123,120]
[407964525,1772940648574,-151.0,0.00047123,60]
[407964526,1772940648585,-151.0,0.00047123,60]
[407964527,1772940648595,-151.0,0.00047123,60]
[407964528,1772940648605,-154.56325594,0.00047123,120]
[407964529,1772940648615,-186.50611956,0.00047123,120]
[407964530,1772940648625,-500.0,0.00047123,120]
[407964531,1772940648634,-166.82416237,0.00047123,120]
[407964532,1772940648644,-293.92274525,0.00047123,60]
[407964533,1772940648654,-32336.70655435,0.00047123,120]
[407964534,1772940648664,-22723.53643147,0.00047123,61]
[407964535,1772940648676,-20578.60394921,0.00047123,2]
[407964536,1772940648686,-355.89070834,0.00047123,120]
[407964537,1772940648696,-151.34846823,0.00047123,120]
[407964538,1772940648707,-523.85253732,0.00047123,30]
[407964539,1772940648717,-160.74889945,0.00047123,35]
[407964540,1772940648727,-19335.4278116,0.00047123,30]
[407964541,1772940648736,-673.59500992,0.00047123,120]
[407964542,1772940648747,-6747.0,0.00047123,120]
[407964543,1772940648756,-116375.0,0.00047123,60]
[407964544,1772940648767,-190.4969588,0.00047123,30]
[407964545,1772940648777,-12000.0,0.00047123,120]
[407964546,1772940648787,-12000.0,0.00047123,120]
[407964547,1772940648797,-50002.81,0.00047123,120]
[407964548,1772940648808,-527.04524501,0.00047123,120]
[407964549,1772940648817,-150.0,0.00047128,120]
[407964550,1772940648827,-1731.03682537,0.0004717,19]
[407964551,1772940648837,-5753.06,0.00047211,8]
[407964552,1772940648846,-152.0,0.0004732,5]
[407964553,1772940648856,-321.01260003,0.00047331,120]
[407964554,1772940648866,-4423.28,0.000475,120]
[407964555,1772940648875,-150.0,0.00047511,120]
[407964556,1772940648885,-1043.4,0.00047617,120]
[407964557,1772940648894,-154.0,0.000477,120]
[407964558,1772940648903,-152.0,0.000477,120]
[407964559,1772940648916,-774.0,0.000477,60]
[407964560,1772940648925,-2770.11,0.000478,120]
[407964561,1772940648935,-4950.31,0.000478,120]
[407964562,1772940648944,-188.5626297,0.00047865,2]
[407964563,1772940648955,-5645.0,0.00048,120]
[407964564,1772940648965,-525.39,0.00048,14]
[407964565,1772940648975,-162.0,0.00048053,16]
[407964566,1772940648987,-150.0,0.00048116,120]
[407964567,1772940648998,-150.0,0.00048345,120]
[407964568,1772940649008,-150.0,0.00048348,120]
[407964569,1772940649018,-150.0,0.00048348,120]
[407964570,1772940649027,-500.0,0.00048356,60]
[407964571,1772940649037,-500.0,0.00048356,60]
[407964572,1772940649047,-162.81,0.000484,14]
[407964573,1772940649056,-150.0,0.00048409,120]
[407964574,1772940649065,-486.74,0.00048409,30]
[407964575,1772940649074,-507.0,0.000485,31]
[407964576,1772940649083,-1010.21,0.00048532,120]
[407964577,1772940649093,-3504.0,0.00048552,2]
[407964578,1772940649102,-847.0,0.0004876,31]
[407964579,1772940649112,-852.0,0.0004876,31]
[407964580,1772940649121,-96998.54413078,0.000488,120]
[407964581,1772940649130,-500.0,0.000488,120]
[407964582,1772940649139,-150.0,0.0004882,120]
[407964583,1772940649149,-154.0,0.000489,120]
[407964584,1772940649159,-152.0,0.000489,120]
[407964585,1772940649168,-188.5626297,0.00048921,2]
[407964586,1772940649178,-150.0,0.00048976,120]
[407964587,1772940649187,-151.64311623,0.00049,120]
[407964588,1772940649196,-150.0,0.00049,120]
[407964589,1772940649205,-150.0,0.00049,120]
[407964590,1772940649214,-8792.0,0.00049,120]
[407964591,1772940649223,-4307.0,0.00049,120]
[407964592,1772940649233,-10688.0,0.00049,120]
[407964593,1772940649242,-10688.0,0.00049,120]
[407964594,1772940649252,-10688.0,0.00049,120]
[407964595,1772940649261,-10806.78,0.00049,120]
[407964596,1772940649270,-774.0,0.0004905,60]
[407964597,1772940649279,-1521.39090044,0.00049196,2]
[407964598,1772940649288,-514.81342724,0.00049315,30]
[407964599,1772940649300,-754.52,0.00049315,120]
[407964600,1772940649310,-754.52,0.00049315,120]
[407964601,1772940649321,-754.52,0.00049315,120]
[407964602,1772940649331,-754.52,0.00049315,120]
[407964603,1772940649340,-754.52,0.00049315,120]
[407964604,1772940649350,-754.52,0.00049315,120]
[407964605,1772940649359,-754.52,0.00049315,120]
[407964606,1772940649368,-754.52,0.00049315,120]
[407964607,1772940649377,-754.52,0.00049315,120]
[407964608,1772940649387,-754.52,0.00049315,120]
[407964609,1772940649397,-754.52,0.00049315,120]
[407964610,1772940649406,-754.52,0.00049315,120]
[407964611,1772940649416,-754.52,0.00049315,120]
[407964612,1772940649427,-754.52,0.00049315,120]
[407964613,1772940649438,-500.0,0.00049315,120]
[407964614,1772940649447,-502.46950862,0.00049315,120]
[407964615,1772940649456,-596.52,0.00049315,120]
[407964616,1772940649466,-596.52,0.00049315,120]
[407964617,1772940649476,-596.52,0.00049315,120]
[407964618,1772940649487,-596.52,0.00049315,120]
[407964619,1772940649496,-596.52,0.00049315,120]
[407964620,1772940649505,-596.52,0.00049315,120]
[407964621,1772940649516,-596.52,0.00049315,120]
[407964622,1772940649526,-596.52,0.00049315,120]
[407964623,1772940649536,-596.52,0.00049315,120]
[407964624,1772940649547,-596.52,0.00049315,120]
[407964625,1772940649556,-596.52,0.00049315,120]
[407964626,1772940649566,-596.52,0.00049315,120]
[407964627,1772940649575,-596.52,0.00049315,120]
[407964628,1772940649584,-596.52,0.00049315,120]
[407964629,1772940649596,-1250.03,0.00049315,5]
[407964630,1772940649605,-1250.03,0.00049315,5]
[407964631,1772940649614,-1250.03,0.00049315,5]
[407964632,1772940649623,-1250.03,0.00049315,5]
[407964633,1772940649634,-1250.03,0.00049315,5]
[407964634,1772940649643,-1250.03,0.00049315,5]
[407964635,1772940649654,-1250.03,0.00049315,5]
[407964636,1772940649665,-1250.03,0.00049315,5]
[407964637,1772940649675,-1250.03,0.00049315,5]
[407964638,1772940649685,-1250.03,0.00049315,5]
[407964639,1772940649696,-1250.03,0.00049315,5]
[407964640,1772940649705,-1250.03,0.00049315,5]
[407964641,1772940649714,-1250.03,0.00049315,5]
[407964642,1772940649723,-1250.03,0.00049315,5]
[407964643,1772940649732,-500.0,0.00049315,120]
[407964644,1772940649741,-500.0,0.00049315,120]
[407964645,1772940649751,-500.0,0.00049315,120]
[407964646,1772940649760,-500.0,0.00049315,120]
[407964647,1772940649769,-500.0,0.00049315,120]
[407964648,1772940649778,-500.0,0.00049315,120]
[407964649,1772940649787,-500.0,0.00049315,120]
[407964650,1772940649797,-500.0,0.00049315,120]
[407964651,1772940649808,-648.55982003,0.00049315,120]
[407964652,1772940649818,-625.81,0.00049315,120]
[407964653,1772940649828,-625.81,0.00049315,120]
[407964654,1772940649841,-625.81,0.00049315,120]
[407964655,1772940649851,-625.81,0.00049315,120]
[407964656,1772940649866,-625.81,0.00049315,120]
[407964657,1772940649877,-625.81,0.00049315,120]
[407964658,1772940649899,-625.81,0.00049315,120]
[407964659,1772940649910,-625.81,0.00049315,120]
[407964660,1772940649922,-625.81,0.00049315,120]
[407964661,1772940649933,-625.81,0.00049315,120]
[407964662,1772940649942,-625.81,0.00049315,120]
[407964663,1772940649951,-625.81,0.00049315,120]
[407964664,1772940649961,-625.81,0.00049315,120]
[407964665,1772940649971,-625.81,0.00049315,120]
[407964666,1772940649981,-1490.58,0.00049315,120]
[407964667,1772940649994,-500.0,0.00049315,2]
[407964668,1772940650004,-500.0,0.00049315,2]
[407964669,1772940650013,-500.0,0.00049315,2]
[407964670,1772940650023,-500.0,0.00049315,2]
[407964671,1772940650032,-500.0,0.00049315,2]
[407964672,1772940650042,-500.0,0.00049315,2]
[407964673,1772940650051,-500.0,0.00049315,2]
[407964674,1772940650060,-500.0,0.00049315,2]
[407964675,1772940650072,-500.0,0.00049315,2]
[407964676,1772940650081,-500.0,0.00049315,2]
[407964677,1772940650090,-500.0,0.00049315,2]
[407964678,1772940650100,-500.0,0.00049315,2]
[407964679,1772940650109,-500.0,0.00049315,2]
[407964680,1772940650119,-500.0,0.00049315,2]
[407964681,1772940650128,-150.0,0.00049315,120]
[407964682,1772940650137,-478.95762097,0.00049315,120]
[407964683,1772940650147,-500.0,0.00049315,120]
[407964684,1772940650156,-500.0,0.00049315,120]
[407964685,1772940650165,-500.0,0.00049315,120]
[407964686,1772940650175,-500.0,0.00049315,120]
[407964687,1772940650185,-169.65413369,0.00049315,120]
[407964688,1772940650195,-500.0,0.00049315,120]
[407964689,1772940650204,-500.0,0.00049315,120]
[407964690,1772940650214,-500.0,0.00049315,120]
[407964691,1772940650223,-500.0,0.00049315,120]
[407964692,1772940650232,-500.0,0.00049315,120]
[407964693,1772940650242,-500.0,0.00049315,120]
[407964694,1772940650251,-500.0,0.00049315,120]
[407964695,1772940650260,-500.0,0.00049315,120]
[407964696,1772940650270,-500.0,0.00049315,120]
[407964697,1772940650280,-291.04471484,0.00049315,120]
[407964698,1772940650289,-754.52,0.00049399,120]
[407964699,1772940650300,-1250.03,0.00049399,5]
[407964700,1772940650309,-525.39,0.000494,30]
[407964701,1772940650319,-85705.33966769,0.000494,30]
[407964702,1772940650400,-6750.00013924,0.000494,30]
[407964703,1772940650494,-8443.26342354,0.00027397,10]
[407964704,1772940650515,-8229.30657646,0.00027397,10]
[407964705,1772940650524,-449.39641104,0.00030727,30]
[407964714,1772941832343,-500.0,0.00015,2]
[407964715,1772941832356,-250.0,0.00015,2]
[407964716,1772941832365,-386.116815,0.00016003,7]
[407964717,1772941832375,-478.84,0.00016438,2]
[407964718,1772941832385,-550.0,0.00016499,2]
[407964719,1772941832394,-1200.0,0.00016499,2]
[407964720,1772941832404,-2500.0,0.000165,2]
[407964721,1772941832413,-2500.0,0.000165,2]
[407964722,1772941832423,-2500.0,0.000165,2]
[407964723,1772941832433,-2500.0,0.000165,2]
[407964724,1772941832442,-2500.0,0.000165,2]
[407964725,1772941832452,-200.0,0.000165,2]
[407964726,1772941832461,-200.0,0.000165,2]
[407964727,1772941832470,-200.0,0.000165,2]
[407964728,1772941832479,-250.92685591,0.000165,2]
[407964729,1772941832489,-167.414,0.00016509,2]
[407964730,1772941832498,-1924.767,0.00016509,2]
[407964731,1772941832508,-527.62,0.00016581,2]
[407964732,1772941832518,-1395.4877,0.00016746,2]
[407964733,1772941832527,-2500.0,0.00016746,2]
[407964734,1772941832537,-163.5336877,0.0001677,2]
[407964735,1772941832546,-7999.81290067,0.0001677,2]
[407964736,1772941832555,-567.21843851,0.0001677,2]
[407964737,1772941832566,-570.0,0.00016822,2]
[407964738,1772941832575,-4255.23466,0.00016845,2]
[407964739,1772941832584,-600.0562129,0.00016845,2]
[407964740,1772941832593,-2893.48358776,0.00016845,2]
[407964741,1772941832602,-183.29704422,0.00016845,2]
[407964742,1772941832612,-282.85090532,0.00016845,2]
[407964743,1772941832621,-9999.99,0.00016845,2]
[407964744,1772941832631,-618.07,0.00016845,2]
[407964745,1772941832640,-9999.99,0.00016845,2]
[407964746,1772941832649,-9999.99,0.00016845,2]
[407964747,1772941832658,-150.99,0.00016845,2]
[407964748,1772941832668,-9999.99,0.00016845,2]
[407964749,1772941832677,-150.99,0.00016845,2]
[407964750,1772941832687,-999.99,0.00016845,2]
[407964751,1772941832696,-1206.86,0.00016845,2]
[407964752,1772941832705,-2110.89,0.00016845,2]
[407964753,1772941832717,-3447.62,0.00016846,2]
[407964754,1772941832727,-307624.76457751,0.00016846,2]
[407964755,1772941832738,-47398.05846543,0.00016846,2]
[407964756,1772941832750,-5000.00113981,0.00016846,2]
[407964757,1772941832766,-1611.15630401,0.00016846,2]
[407964761,1772941840795,-1339.65511998,0.00016846,2]
[407964766,1772941843647,-2000.1049965,0.00016846,2]
[407964769,1772941846452,-418.62163742,0.00016846,2]
[407964770,1772941846466,-400539.2285906,0.00016846,2]
[407964771,1772941846506,-502.0,0.00016846,2]
[407964788,1772941983742,5914.26,0.0002,120]
[407964789,1772942357606,150.0,0.0001724,120]
[407964806,1772943031500,-553.52926751,0.00015,2]
[407964807,1772943031516,-1506.75374519,0.00015,2]
[407964808,1772943031527,-2955.59628272,0.00015,14]
[407964809,1772943031539,-8020.85212199,0.00015,2]
[407964810,1772943031551,-3067.55173912,0.00015,7]
[407964811,1772943031563,-250.0,0.00015,2]
[407964812,1772943031574,-172.79,0.00015864,2]
[407964813,1772943031584,-500.0,0.00016127,2]
[407964814,1772943031596,-500.0,0.00016127,2]
[407964815,1772943031611,-500.0,0.00016127,2]
[407964816,1772943031622,-500.0,0.00016127,2]
[407964817,1772943031633,-500.0,0.00016127,2]
[407964818,1772943031645,-500.0,0.00016127,2]
[407964819,1772943031656,-500.0,0.00016127,2]
[407964820,1772943031667,-500.0,0.00016127,2]
[407964821,1772943031679,-500.0,0.00016127,2]
[407964822,1772943031690,-500.0,0.00016127,2]
[407964823,1772943031703,-500.0,0.00016127,2]
[407964824,1772943031715,-333.18627222,0.00016127,2]
[407964826,1772943031726,-200.0,0.00016198,2]
[407964827,1772943031737,-2207.45371969,0.000162,5]
[407964828,1772943031748,-479.66,0.00016217,2]
[407964829,1772943031758,-479.66,0.00016217,2]
[407964830,1772943031770,-479.66,0.00016217,2]
[407964831,1772943031783,-479.66,0.00016217,2]
[407964832,1772943031795,-479.66,0.00016217,2]
[407964833,1772943031805,-600.47676415,0.00016226,2]
[407964834,1772943031818,-229.63446145,0.00016226,2]
[407964835,1772943031828,-6023.23619865,0.00016226,2]
[407964836,1772943031838,-71692.82353892,0.00016227,2]
[407964837,1772943031851,-34321.3952161,0.00016227,2]
[407964838,1772943031864,-712.750005,0.00016227,2]
[407964839,1772943031879,-378.23771447,0.00016227,2]
[407964842,1772943037593,-197.99563372,0.00016226,2]
[407964843,1772943037603,-149.13553127,0.00016227,2]
[407964859,1772943039594,-15038.56155597,0.00016227,2]
[407964860,1772943042511,-300.11657771,0.00016227,2]
[407964861,1772943043904,-3247.89689275,0.00016227,2]
[407964862,1772943043957,-344.0,0.00016227,2]
[407964866,1772943045451,-452440.89844101,0.00016227,2]
[407964867,1772943045464,-251.58478351,0.00016227,2]
[407964868,1772943045477,-10122.27695375,0.00016227,2]
[407964869,1772943045491,-12279.45352763,0.00016227,2]
[407964870,1772943045503,-1222.0,0.00016227,2]
[407964871,1772943045652,-28153.11320901,0.00016227,2]
[407964876,1772943484754,385.57,7.798e-05,2]
[407964877,1772943484946,385.57,8.209e-05,2]
[407964878,1772943485141,385.57,8.619e-05,2]
[407964879,1772943485341,385.57,9.03e-05,2]
[407964880,1772943485547,385.57,9.44e-05,2]
[407964881,1772943485773,385.57,9.85e-05,2]
[407964882,1772943486040,385.57,0.00010261,2]
[407964883,1772943486160,385.57,0.00010671,2]
[407964884,1772943486362,385.57,0.00011082,2]
[407964885,1772943486557,385.57,0.00011492,2]
[407964888,1772944045510,500.0,8e-05,2]
[407964889,1772944045634,500.0,8e-05,2]
[407964890,1772944045709,500.0,8e-05,2]
[407964891,1772944045985,507.15341112,8e-05,2]
[407964894,1772944231648,-385.57,0.00011903,2]
[407964895,1772944231658,-150.0,0.00011903,2]
[407964896,1772944231667,-16.48808685,0.00011903,2]
[407964897,1772944231680,-1947.69223446,0.00011903,2]
[407964898,1772944231702,-403.84393871,0.00011903,2]
[407964899,1772944231712,-150.0,0.00011903,14]
[407964900,1772944231721,-247.0,0.00011903,2]
[407964901,1772944231733,-385.57,0.00012313,2]
[407964902,1772944231743,-385.57,0.00012723,2]
[407964903,1772944231752,-1200.0,0.00013091,2]
[407964904,1772944231761,-300.0,0.00013092,2]
[407964905,1772944231770,-300.0,0.00013092,2]
[407964906,1772944231779,-5000.0,0.00013093,2]
[407964907,1772944231789,-250.0,0.00013093,2]
[407964908,1772944231798,-250.0,0.00013093,2]
[407964909,1772944231807,-250.0,0.00013093,2]
[407964910,1772944231816,-385.57,0.00013134,2]
[407964911,1772944231826,-385.57,0.00013544,2]
[407964912,1772944231835,-422.09,0.00013795,2]
[407964913,1772944231844,-393.95822981,0.00013923,2]
[407964914,1772944231857,-1106.04177019,0.00013923,2]
[407964915,1772944231866,-385.57,0.00013955,2]
[407964917,1772944231876,-150.0,0.00014008,2]
[407964919,1772944231885,-250.0,0.00014009,2]
[407964920,1772944231894,-200.0,0.00014206,2]
[407964921,1772944231904,-385.57,0.00014365,2]
[407964922,1772944231913,-427.0,0.00014399,2]
[407964923,1772944231923,-195.0,0.000144,2]
[407964924,1772944231932,-3240.0,0.000144,2]
[407964925,1772944231941,-741.0,0.00014418,2]
[407964926,1772944231952,-448.0,0.00014496,2]
[407964927,1772944231965,-385.57,0.00014776,2]
[407964928,1772944231974,-432.27305216,0.00014803,2]
[407964929,1772944231984,-500.0,0.00015,30]
[407964930,1772944231994,-511.52465437,0.00015,30]
[407964932,1772944232003,-508.61247454,0.00015,30]
[407964934,1772944232012,-500.0,0.00015,30]
[407964935,1772944232021,-500.0,0.00015,30]
[407964936,1772944232031,-500.0,0.00015,30]
[407964937,1772944232040,-500.0,0.00015,30]
[407964938,1772944232049,-500.0,0.00015,30]
[407964939,1772944232059,-500.0,0.00015,30]
[407964940,1772944232068,-500.92571844,0.00015,30]
[407964941,1772944232080,-255.0,0.00015129,2]
[407964942,1772944232090,-385.57,0.00015186,2]
[407964943,1772944232099,-150.0,0.00015235,2]
[407964944,1772944232109,-9999.99,0.0001531,2]
[407964945,1772944232118,-150.99,0.0001531,2]
[407964946,1772944232127,-595.91,0.00015471,2]
[407964947,1772944232136,-715.46,0.00015471,2]
[407964948,1772944232145,-422.09,0.00015519,2]
[407964949,1772944232156,-500.0,0.00015596,2]
[407964950,1772944232164,-385.57,0.00015597,2]
[407964951,1772944232174,-188.27235742,0.00015683,2]
[407964952,1772944232183,-484.15,0.00015683,3]
[407964953,1772944232191,-237.75577704,0.00015692,2]
[407964954,1772944232201,-622.61245981,0.00015692,2]
[407964955,1772944232210,-500.0,0.00015692,2]
[407964956,1772944232219,-500.0,0.00015692,2]
[407964957,1772944232228,-500.0,0.00015692,2]
[407964958,1772944232238,-500.0,0.00015692,2]
[407964959,1772944232247,-500.0,0.00015692,2]
[407964960,1772944232257,-137.18017829,0.00015692,2]
[407964961,1772944232268,-362.81982171,0.00015692,2]
[407964962,1772944232278,-500.0,0.00015692,2]
[407964963,1772944232287,-500.0,0.00015692,2]
[407964964,1772944232296,-500.0,0.00015692,2]
[407964965,1772944232305,-500.0,0.00015692,2]
[407964966,1772944232314,-500.0,0.00015692,2]
[407964967,1772944232323,-500.0,0.00015692,2]
[407964968,1772944232333,-500.0,0.00015692,2]
[407964969,1772944232343,-539.67986013,0.00015692,2]
[407964970,1772944232352,-500.0,0.00015692,2]
[407964971,1772944232361,-500.0,0.00015692,2]
[407964972,1772944232370,-500.0,0.00015692,2]
[407964973,1772944232379,-500.0,0.00015692,2]
[407964974,1772944232389,-500.0,0.00015692,2]
[407964975,1772944232398,-500.0,0.00015692,2]
[407964976,1772944232407,-500.0,0.00015692,2]
[407964977,1772944232417,-500.0,0.00015692,2]
[407964978,1772944232426,-500.0,0.00015692,2]
[407964979,1772944232435,-500.0,0.00015692,2]
[407964980,1772944232444,-500.0,0.00015692,2]
[407964981,1772944232454,-500.0,0.00015692,2]
[407964982,1772944232467,-500.0,0.00015692,2]
[407964983,1772944232477,-500.0,0.00015692,2]
[407964984,1772944232487,-500.0,0.00015692,2]
[407964985,1772944232496,-500.0,0.00015692,2]
[407964986,1772944232505,-500.0,0.00015692,2]
[407964987,1772944232515,-500.0,0.00015692,2]
[407964988,1772944232524,-500.0,0.00015692,2]
[407964989,1772944232534,-500.0,0.00015692,2]
[407964990,1772944232543,-69674.49732775,0.00015693,2]
[407964991,1772944232555,-938.55,0.00015693,2]
[407964995,1772944237834,-500.03289567,0.00015693,2]
[407964996,1772944237890,-5320.84436326,0.00015693,2]
[407964997,1772944237901,-658.51255453,0.00015693,2]
[407965000,1772944239859,-394.76273875,0.00015593,2]
[407965003,1772944240077,-2090.40897658,0.00015593,2]
[407965004,1772944240088,-395.472,0.00015593,2]
[407965005,1772944240099,-2516.41509642,0.00015593,2]
[407965006,1772944240108,-2414.97442567,0.00015693,2]
[407965007,1772944240134,-1134.17202255,0.00015693,2]
[407965008,1772944240144,-373.5644,0.00015693,2]
[407965009,1772944240297,-144190.01220666,0.00015693,2]
[407965010,1772944240308,-76773.17387598,0.00015693,2]
[407965011,1772944240352,-857.81402166,0.00015693,2]
[407965012,1772944240408,-17551.40994801,0.00015693,2]
[407965017,1772944242759,-2432.6275441,0.00015614,2]
[407965018,1772944242817,-559.0774979,0.00015614,2]
[407965019,1772944242826,-1553.61023091,0.00015693,2]
[407965020,1772944242838,-6023.04433623,0.00015693,2]
[407965021,1772944242848,-9449.51153875,0.00015693,2]
[407965022,1772944242873,-5642.70196642,0.00015693,2]
[407965023,1772944245641,-500.0,0.00015692,2]
[407965024,1772944245651,-35546.72332976,0.00015693,2]
[407965025,1772944245805,-444.58999998,0.00015693,2]
[407965033,1772944538958,-167.41476457,0.00015379,2]
[407965034,1772944538989,-101.14962608,0.00015379,2]
[407965040,1772944935748,500.0,8e-05,2]
[407965041,1772944935779,985.61,8e-05,2]
[407965042,1772944939045,500.0,8e-05,2]
[407965048,1772945431766,-296.11,0.00014447,2]
[407965049,1772945431776,-300.0,0.00014558,2]
[407965050,1772945431785,-886.7915306,0.00014558,2]
[407965051,1772945431797,-313.2084694,0.00014558,2]
[407965052,1772945431806,-47.83417866,0.0001456,2]
[407965053,1772945431818,-666.96670514,0.0001456,2]
[407965054,1772945431873,-266.38014877,0.0001456,2]
[407965055,1772945431884,-11783.02896743,0.0001456,2]
[407965056,1772945431894,-189.03928642,0.00014566,2]
[407965057,1772945431903,-20897.65,0.00014572,2]
[407965058,1772945431912,-258.89,0.00014585,2]
[407965059,1772945431922,-15578.25,0.00014712,2]
[407965060,1772945431931,-150.0,0.00014867,2]
[407965061,1772945431940,-8176.55,0.00014868,2]
[407965062,1772945431949,-2000.0,0.0001494,2]
[407965063,1772945431958,-250.0,0.00015,2]
[407965064,1772945431968,-500.0,0.00015,30]
[407965065,1772945431977,-500.0,0.00015,30]
[407965066,1772945431986,-654.54092455,0.00015,30]
[407965067,1772945431995,-651.72850661,0.00015,30]
[407965068,1772945432004,-500.0,0.00015,30]
[407965069,1772945432013,-500.0,0.00015,30]
[407965070,1772945432022,-500.0,0.00015,30]
[407965071,1772945432031,-584.0,0.00015229,2]
[407965073,1772945432040,-172.0,0.00015269,2]
[407965074,1772945432049,-500.0,0.00015318,2]
[407965076,1772945432059,-500.0,0.00015318,2]
[407965079,1772945432072,-500.0,0.00015318,2]
[407965081,1772945432081,-150.0,0.00015318,2]
[407965083,1772945432090,-150.0,0.00015318,2]
[407965085,1772945432099,-150.0,0.00015318,2]
[407965087,1772945432108,-500.0,0.00015319,2]
[407965089,1772945432117,-150.0,0.00015319,2]
[407965091,1772945432126,-500.0,0.00015373,2]
[407965093,1772945432135,-500.0,0.00015373,2]
[407965095,1772945432145,-501.0,0.00015373,2]
[407965097,1772945432154,-150.0,0.00015373,2]
[407965099,1772945432163,-500.0,0.00015374,2]
[407965101,1772945432173,-150.0,0.00015374,2]
[407965103,1772945432183,-511.53552374,0.00015393,2]
[407965104,1772945432192,-5270.33167381,0.00015393,2]
[407965107,1772945432201,-12869.00775087,0.00015393,2]
[407965109,1772945432211,-5162.54641023,0.00015393,2]
[407965110,1772945432219,-150.0,0.00015409,2]
[407965112,1772945432229,-150.0,0.00015409,2]
[407965114,1772945432237,-200.0,0.00015409,2]
[407965116,1772945432246,-500.0,0.00015428,2]
[407965118,1772945432255,-298.822564,0.00015428,2]
[407965120,1772945432264,-500.0,0.00015428,2]
[407965122,1772945432277,-500.0,0.00015429,2]
[407965124,1772945432286,-200.0,0.00015429,2]
[407965126,1772945432294,-500.41098414,0.00015473,2]
[407965127,1772945432303,-73.75964368,0.00015473,2]
[407965128,1772945432316,-426.24035632,0.00015473,2]
[407965129,1772945432326,-151.0,0.00015478,2]
[407965130,1772945432336,-23416.33054377,0.00015482,2]
[407965131,1772945432348,-268.1746304,0.00015482,2]
[407965132,1772945432360,-231.8253696,0.00015482,2]
[407965133,1772945432369,-200.0,0.00015482,2]
[407965134,1772945432379,-188.27235742,0.00015483,2]
[407965135,1772945432388,-500.0,0.00015483,2]
[407965136,1772945432398,-151.0,0.0001549,2]
[407965137,1772945432407,-166.42904393,0.00015492,2]
[407965138,1772945432416,-500.0,0.00015492,2]
[407965139,1772945432425,-500.0,0.00015492,2]
[407965140,1772945432435,-500.0,0.00015492,2]
[407965141,1772945432443,-478.90636927,0.00015492,2]
[407965142,1772945432453,-500.0,0.00015492,2]
[407965143,1772945432462,-500.0,0.00015492,2]
[407965144,1772945432473,-500.0,0.00015492,2]
[407965145,1772945432483,-500.0,0.00015492,2]
[407965146,1772945432492,-500.0,0.00015492,2]
[407965147,1772945432501,-500.0,0.00015492,2]
[407965148,1772945432510,-500.0,0.00015492,2]
[407965149,1772945432519,-500.0,0.00015492,2]
[407965150,1772945432528,-500.0,0.00015492,2]
[407965151,1772945432537,-500.0,0.00015492,2]
[407965152,1772945432547,-500.0,0.00015492,2]